bitfinex/quotes_SOLUSD_20230401
["timestamp","ask_amount","ask_price","bid_price","bid_amount"]
[1680361138480,138.0677,20.9,20.89,19.147]
[1680361141498,165.1577,20.9,20.886,10.0]
[1680361141696,17.0,20.899,20.886,10.0]
[1680361141878,10.0,20.898,20.886,10.0]
[1680361142802,165.1577,20.9,20.886,10.0]
[1680361143091,165.1577,20.9,20.889,19.148]
[1680361143296,138.0677,20.9,20.889,19.148]
[1680361143488,138.0677,20.9,20.89,10.0]
[1680361146580,138.0677,20.9,20.889,19.148]
[1680361146902,17.0,20.899,20.884,10.0]
[1680361147203,20.0,20.898,20.884,29.153]
[1680361147393,10.0,20.896,20.884,29.153]
[1680361147589,37.0,20.895,20.884,29.153]
[1680361149074,20.0,20.895,20.884,29.153]
[1680361149275,165.1577,20.9,20.885,17.0]
[1680361149479,138.0677,20.9,20.89,19.147]
[1680361150087,26.97,20.9,20.89,19.147]
[1680361150303,54.0,20.91,20.9,0.0687798]
[1680361150606,20.0,20.909,20.9,0.0687798]
[1680361152198,144.0641,20.91,20.9,0.0687798]
[1680361153397,19.139736,20.907,20.9,0.0687798]
[1680361162212,10.0,20.906,20.9,0.0687798]
[1680361162396,17.0,20.905,20.9,0.0687798]
[1680361163015,10.0,20.906,20.9,0.0687798]
[1680361163211,10.0,20.904,20.9,0.0687798]
[1680361165122,16.93141795,20.903,20.9,0.0687798]
[1680361165410,10.0,20.904,20.9,0.0687798]
[1680361167319,17.0,20.903,20.9,0.0687798]
[1680361168421,10.0,20.902,20.892,19.145]
[1680361168719,10.0,20.902,20.887,10.0]
[1680361168720,54.36,20.9,20.888,19.149]
[1680361169017,17.0,20.899,20.888,19.149]
[1680361172128,17.0,20.899,20.886,10.0]
[1680361172129,10.0,20.898,20.881,10.0]
[1680361172312,17.0,20.897,20.884,20.0]
[1680361173134,17.0,20.897,20.887,10.0]
[1680361174614,17.0,20.897,20.886,19.151]
[1680361174919,173.8731,20.9,20.886,19.151]
[1680361175119,17.0,20.899,20.887,10.0]
[1680361175710,10.0,20.898,20.887,10.0]
[1680361175911,17.0,20.897,20.886,19.151]
[1680361176223,10.0,20.896,20.886,19.151]
[1680361176418,17.0,20.895,20.886,19.151]
[1680361177421,10.0,20.896,20.886,19.151]
[1680361177622,20.0,20.895,20.886,19.151]
[1680361178126,10.0,20.893,20.886,19.151]
[1680361178424,17.0,20.894,20.886,19.151]
[1680361178929,20.0,20.895,20.886,19.151]
[1680361179121,17.0,20.894,20.886,19.151]
[1680361179935,17.0,20.894,20.885,19.132478]
[1680361180111,10.0,20.893,20.885,19.132478]
[1680361180427,10.0,20.891,20.885,19.132478]
[1680361180621,17.0,20.89,20.885,19.132478]
[1680361181227,10.0,20.891,20.885,19.132478]
[1680361181426,17.0,20.89,20.885,19.132478]
[1680361183515,17.0,20.892,20.885,19.132478]
[1680361183716,17.0,20.893,20.885,19.132478]
[1680361185832,10.0,20.892,20.885,19.132478]
[1680361186037,17.0,20.891,20.885,19.132478]
[1680361187617,17.0,20.893,20.885,19.132478]
[1680361188113,17.0,20.893,20.883,29.5]
[1680361188317,27.1,20.89,20.883,29.5]
[1680361188542,17.0,20.889,20.883,29.5]
[1680361188723,37.0,20.889,20.883,29.5]
[1680361191237,20.0,20.889,20.883,29.5]
[1680361191830,10.0,20.888,20.883,29.5]
[1680361192031,20.0,20.887,20.883,29.5]
[1680361192717,54.28,20.89,20.883,29.5]
[1680361192923,27.18,20.89,20.883,29.5]
[1680361193125,17.0,20.889,20.883,29.5]
[1680361194538,54.15,20.89,20.883,29.5]
[1680361194831,26.97,20.89,20.883,29.5]
[1680361195830,26.97,20.89,20.884,10.0]
[1680361197039,26.97,20.89,20.883,29.5]
[1680361200539,26.97,20.89,20.883,29.5]
[1680361200750,26.97,20.89,20.883,48.653]
[1680361204645,26.97,20.89,20.884,10.0]
[1680361205744,26.97,20.89,20.884,9.5]
[1680361205932,26.97,20.89,20.883,48.653]
[1680361206644,26.97,20.89,20.883,29.5]
[1680361206952,17.0,20.889,20.883,29.5]
[1680361211654,10.0,20.888,20.883,29.5]
[1680361211853,17.0,20.887,20.883,29.5]
[1680361212848,53.88,20.89,20.883,29.5]
[1680361214642,173.6031,20.9,20.885,38.304]
[1680361214842,146.4231,20.9,20.885,114.914]
[1680361215070,146.4231,20.9,20.886,7.12065298]
[1680361215241,26.91,20.9,20.89,19.147]
[1680361215642,10.0,20.908,20.891,10.0]
[1680361215964,10.0,20.908,20.895,19.142]
[1680361216170,20.0,20.907,20.895,19.142]
[1680361216859,10.0,20.906,20.895,19.142]
[1680361217056,20.0,20.905,20.895,19.142]
[1680361218243,20.0,20.907,20.895,19.142]
[1680361218565,10.0,20.906,20.895,19.142]
[1680361218762,27.18,20.9,20.89,29.147]
[1680361219459,27.18,20.9,20.889,10.0]
[1680361219652,17.0,20.899,20.889,10.0]
[1680361220347,27.18,20.9,20.889,10.0]
[1680361221157,54.09,20.9,20.886,10.0]
[1680361221375,17.0,20.899,20.886,10.0]
[1680361221661,10.0,20.898,20.882,29.155]
[1680361221850,27.1,20.89,20.882,19.155]
[1680361222058,17.0,20.889,20.882,19.155]
[1680361222366,27.1,20.89,20.882,19.155]
[1680361224462,17.0,20.889,20.88,12.74905538]
[1680361227672,40.95,20.89,20.88,12.74905538]
[1680361227871,17.0,20.889,20.88,12.74905538]
[1680361228585,40.95,20.89,20.881,19.155]
[1680361232476,17.0,20.889,20.881,19.155]
[1680361235977,10.0,20.888,20.88,12.74905538]
[1680361236177,17.0,20.887,20.88,12.74905538]
[1680361237679,17.0,20.887,20.883,7.2182]
[1680361237982,10.0,20.886,20.883,7.2182]
[1680361238280,17.0,20.885,20.883,7.2182]
[1680361238677,10.0,20.884,20.87,23.82530722]
[1680361238886,10.0,20.884,20.87,19.165]
[1680361238887,10.0,20.879,20.87,19.165]
[1680361239080,17.0,20.878,20.87,19.165]
[1680361239471,17.0,20.879,20.87,19.165]
[1680361240484,17.0,20.879,20.867,10.0]
[1680361240976,17.0,20.879,20.869,29.5]
[1680361243376,17.0,20.879,20.869,24.5]
[1680361244174,17.0,20.879,20.869,43.666]
[1680361244486,17.0,20.879,20.87,10.0]
[1680361244869,17.0,20.879,20.869,24.5]
[1680361245383,17.0,20.879,20.87,10.0]
[1680361249380,17.0,20.879,20.869,24.5]
[1680361249774,17.0,20.879,20.87,10.0]
[1680361251178,17.0,20.879,20.871,19.164]
[1680361252196,40.71,20.88,20.872,10.0]
[1680361254497,54.78133097,20.88,20.872,10.0]
[1680361255489,109.6814,20.885,20.872,48.327]
[1680361255693,110.6285,20.889,20.872,48.327]
[1680361255890,20.0,20.888,20.872,48.327]
[1680361257000,19.148368,20.893,20.873,17.0]
[1680361257177,19.148368,20.893,20.88,10.0]
[1680361257379,19.148368,20.893,20.883,19.153]
[1680361257674,19.148368,20.893,20.884,10.0]
[1680361259395,17.0,20.892,20.884,10.0]
[1680361259895,17.0,20.892,20.883,19.153]
[1680361260688,40.95,20.89,20.883,19.153]
[1680361260998,17.0,20.889,20.883,19.153]
[1680361262878,17.0,20.889,20.879,57.473]
[1680361264579,40.95,20.89,20.879,57.473]
[1680361264794,40.95,20.89,20.88,10.0]
[1680361265000,40.95,20.89,20.883,19.154]
[1680361265585,10.0,20.889,20.883,19.154]
[1680361265781,17.0,20.888,20.883,19.154]
[1680361265981,10.0,20.887,20.883,19.154]
[1680361266288,17.0,20.886,20.883,19.154]
[1680361267704,17.0,20.886,20.878,19.158]
[1680361268795,17.0,20.888,20.878,19.158]
[1680361269397,17.0,20.888,20.879,10.0]
[1680361271486,17.0,20.888,20.878,19.158]
[1680361273614,40.95,20.89,20.878,19.158]
[1680361273799,10.0,20.899,20.879,17.12065298]
[1680361274004,20.0,20.895,20.884,19.153]
[1680361274989,20.0,20.895,20.885,10.0]
[1680361275201,20.0,20.895,20.888,19.149]
[1680361275892,20.0,20.898,20.889,10.0]
[1680361278189,38.293874,20.899,20.889,10.0]
[1680361278395,38.293874,20.899,20.892,19.146]
[1680361280107,17.0,20.898,20.892,19.146]
[1680361280807,17.0,20.898,20.887,19.149]
[1680361283601,30.0,20.897,20.887,19.149]
[1680361283813,17.0,20.896,20.887,19.149]
[1680361284110,10.0,20.894,20.887,19.149]
[1680361284308,17.0,20.893,20.887,19.149]
[1680361285003,20.0,20.895,20.887,19.149]
[1680361285195,20.0,20.897,20.887,19.149]
[1680361285398,20.0,20.898,20.888,10.0]
[1680361286314,17.0,20.897,20.888,10.0]
[1680361286498,20.0,20.896,20.888,10.0]
[1680361287309,20.0,20.899,20.888,10.0]
[1680361287515,17.0,20.898,20.888,10.0]
[1680361287715,20.0,20.897,20.888,10.0]
[1680361291123,20.0,20.899,20.888,10.0]
[1680361292211,137.1987,20.9,20.89,19.147]
[1680361292413,109.9187,20.9,20.89,19.147]
[1680361292612,14.45408276,20.904,20.891,10.0]
[1680361292817,128.6505,20.909,20.891,10.0]
[1680361294015,10.0,20.905,20.891,10.0]
[1680361294206,17.0,20.904,20.891,10.0]
[1680361295117,27.22,20.9,20.89,29.147]
[1680361295711,27.22,20.9,20.891,10.0]
[1680361295913,17.0,20.904,20.891,10.0]
[1680361296214,17.0,20.906,20.894,19.144]
[1680361296420,20.0,20.905,20.894,19.144]
[1680361296614,17.0,20.904,20.894,19.144]
[1680361296821,17.0,20.904,20.895,10.0]
[1680361297712,20.0,20.905,20.895,10.0]
[1680361297913,17.0,20.904,20.895,10.0]
[1680361298112,20.0,20.906,20.895,10.0]
[1680361299307,17.0,20.905,20.895,10.0]
[1680361299718,19.149,20.901,20.895,10.0]
[1680361300814,19.149,20.901,20.894,19.144]
[1680361301014,17.0,20.9,20.891,10.0]
[1680361301216,19.149,20.901,20.891,10.0]
[1680361301610,17.0,20.9,20.891,10.0]
[1680361302216,19.149,20.901,20.891,10.0]
[1680361303313,17.0,20.9,20.891,10.0]
[1680361304324,17.0,20.9,20.89,29.147]
[1680361304627,10.0,20.899,20.885,19.151]
[1680361304824,17.0,20.898,20.885,19.151]
[1680361305414,17.0,20.898,20.886,10.0]
[1680361306222,17.0,20.898,20.885,19.151]
[1680361306406,10.0,20.896,20.885,19.151]
[1680361306612,20.0,20.895,20.885,19.151]
[1680361306811,17.0,20.894,20.885,19.151]
[1680361309016,20.0,20.895,20.885,19.151]
[1680361309223,20.0,20.895,20.886,10.0]
[1680361309423,17.0,20.894,20.886,10.0]
[1680361309625,17.0,20.895,20.886,10.0]
[1680361314830,17.0,20.895,20.882,10.0]
[1680361315031,27.22,20.89,20.882,10.0]
[1680361316623,27.22,20.89,20.881,29.156]
[1680361322633,27.22,20.89,20.881,19.156]
[1680361322833,17.0,20.889,20.881,19.156]
[1680361327323,17.0,20.889,20.877,19.159]
[1680361327324,10.0,20.888,20.877,19.159]
[1680361327528,17.0,20.887,20.877,19.159]
[1680361327740,20.0,20.886,20.877,19.159]
[1680361327944,17.0,20.885,20.877,19.159]
[1680361331933,20.0,20.886,20.877,19.159]
[1680361332134,54.5,20.89,20.877,19.159]
[1680361332135,20.0,20.889,20.877,19.159]
[1680361332336,20.0,20.889,20.878,10.0]
[1680361333946,17.0,20.888,20.878,10.0]
[1680361334148,20.0,20.887,20.878,10.0]
[1680361335744,20.0,20.889,20.878,10.0]
[1680361337728,20.0,20.889,20.874,10.0]
[1680361338039,17.0,20.888,20.874,10.0]
[1680361338242,10.0,20.886,20.874,10.0]
[1680361338443,17.0,20.885,20.874,10.0]
[1680361339533,17.0,20.885,20.872,10.0]
[1680361339934,27.08,20.88,20.872,10.0]
[1680361340129,17.0,20.879,20.869,10.0]
[1680361342951,17.0,20.879,20.868,10.0]
[1680361344541,27.08,20.88,20.871,19.165]
[1680361344855,27.08,20.88,20.872,10.0]
[1680361346554,27.08,20.88,20.871,19.165]
[1680361348550,41.6549254,20.88,20.871,19.165]
[1680361349052,10.0,20.879,20.871,19.165]
[1680361349257,17.0,20.878,20.867,113.9339]
[1680361349450,17.0,20.878,20.866,31.92660933]
[1680361349657,20.0,20.877,20.866,31.92660933]
[1680361349848,17.0,20.876,20.866,31.92660933]
[1680361351169,17.0,20.876,20.867,10.0]
[1680361351365,20.0,20.877,20.866,12.75760933]
[1680361351662,20.0,20.878,20.866,12.75760933]
[1680361351859,20.0,20.878,20.867,10.0]
[1680361352042,20.0,20.878,20.869,10.0]
[1680361352243,20.0,20.879,20.869,10.0]
[1680361353959,17.0,20.878,20.869,10.0]
[1680361354161,20.0,20.877,20.869,10.0]
[1680361355348,27.18,20.88,20.869,10.0]
[1680361362166,27.18,20.88,20.868,19.167]
[1680361362370,17.0,20.879,20.868,19.167]
[1680361363369,10.0,20.878,20.868,19.167]
[1680361363682,17.0,20.877,20.868,19.167]
[1680361363972,17.0,20.877,20.869,10.0]
[1680361364171,17.0,20.879,20.869,10.0]
[1680361364371,27.18,20.88,20.872,19.164]
[1680361364857,27.18,20.88,20.873,10.0]
[1680361365174,54.46,20.89,20.873,10.0]
[1680361365376,131.5935,20.884,20.873,10.0]
[1680361365769,131.5935,20.884,20.872,19.164]
[1680361365770,27.08,20.88,20.869,10.0]
[1680361365960,10.0,20.879,20.869,10.0]
[1680361366368,17.0,20.878,20.869,10.0]
[1680361366868,10.0,20.879,20.871,19.164]
[1680361367058,27.08,20.88,20.871,19.164]
[1680361367261,17.0,20.879,20.871,19.164]
[1680361369374,27.08,20.88,20.871,19.164]
[1680361370273,17.0,20.879,20.871,19.164]
[1680361372978,10.0,20.878,20.871,19.164]
[1680361373177,17.0,20.877,20.871,19.164]
[1680361374586,17.0,20.877,20.866,31.92660933]
[1680361374880,10.0,20.876,20.866,31.92660933]
[1680361375069,17.0,20.875,20.866,31.92660933]
[1680361375266,17.0,20.877,20.866,31.92660933]
[1680361375679,17.0,20.877,20.867,10.0]
[1680361377168,17.0,20.877,20.866,31.92660933]
[1680361378279,10.0,20.876,20.866,31.92660933]
[1680361378482,17.0,20.875,20.866,31.92660933]
[1680361378879,17.0,20.875,20.867,10.0]
[1680361379082,17.0,20.877,20.867,10.0]
[1680361379381,17.0,20.877,20.866,12.75760933]
[1680361379598,20.0,20.876,20.866,12.75760933]
[1680361379888,10.0,20.874,20.866,12.75760933]
[1680361380072,10.0,20.874,20.862,10.50447474]
[1680361380073,17.0,20.873,20.862,10.50447474]
[1680361380275,54.52,20.87,20.852,14.47832062]
[1680361380474,54.52,20.87,20.85,19.184]
[1680361380475,17.0,20.869,20.85,19.184]
[1680361380675,27.28,20.86,20.858,38.33499815]
[1680361380877,10.0,20.867,20.858,35.83499815]
[1680361381174,17.0,20.866,20.858,35.83499815]
[1680361381384,10.0,20.867,20.858,35.83499815]
[1680361381775,10.0,20.865,20.852,50.84280791]
[1680361381971,54.52,20.87,20.852,50.84280791]
[1680361382283,27.24,20.87,20.853,7.18090671]
[1680361382584,27.24,20.88,20.853,7.18090671]
[1680361382585,81.96,20.88,20.853,7.18090671]
[1680361382787,485.90371371,20.896,20.851,40.28716482]
[1680361382788,10.0,20.894,20.855,10.0]
[1680361383085,41.02,20.89,20.855,14.42982505]
[1680361383284,41.02,20.89,20.857,4.09926265]
[1680361383473,41.02,20.88,20.857,6.40715193]
[1680361383676,41.02,20.88,20.859,10.0]
[1680361383878,10.0,20.889,20.861,6.80948482]
[1680361384088,40.74,20.89,20.862,20.0]
[1680361384381,40.74,20.89,20.863,21.05140308]
[1680361384584,14.62714489,20.895,20.864,24.43283215]
[1680361384787,10.0,20.899,20.865,27.0]
[1680361384995,10.0,20.899,20.871,7.44533322]
[1680361385184,10.0,20.899,20.872,37.0]
[1680361385571,40.98,20.9,20.873,4.51187391]
[1680361385899,0.007735,20.887,20.881,5.91230581]
[1680361386207,0.007735,20.887,20.88,41.02]
[1680361386208,0.007735,20.887,20.882,37.0]
[1680361386376,0.007735,20.887,20.883,7.73444718]
[1680361386691,10.0,20.909,20.885,16.44585688]
[1680361386899,40.74,20.91,20.885,16.44585688]
[1680361387191,10.0,20.914,20.891,6.18960421]
[1680361387392,10.0,20.914,20.892,20.0]
[1680361387580,82.04,20.92,20.893,24.62675747]
[1680361387768,10.0,20.919,20.894,10.0]
[1680361387975,10.0,20.919,20.895,21.69826065]
[1680361388176,10.0,20.919,20.894,10.0]
[1680361388396,17.18090671,20.919,20.895,20.0]
[1680361388789,17.18090671,20.919,20.896,10.0]
[1680361389193,17.18090671,20.919,20.897,17.0]
[1680361389574,17.18090671,20.919,20.898,10.0]
[1680361390190,20.0,20.918,20.898,10.0]
[1680361390504,27.18090671,20.918,20.898,10.0]
[1680361390682,10.0,20.916,20.898,10.0]
[1680361390880,17.0,20.915,20.898,10.0]
[1680361391481,10.0,20.914,20.898,10.0]
[1680361391681,17.0,20.913,20.898,10.0]
[1680361394180,17.0,20.915,20.898,10.0]
[1680361394682,10.0,20.914,20.898,10.0]
[1680361394990,54.46,20.91,20.895,20.0]
[1680361395300,37.0,20.909,20.889,10.0]
[1680361395704,10.0,20.908,20.889,10.0]
[1680361395909,17.0,20.907,20.889,10.0]
[1680361396080,20.0,20.906,20.889,10.0]
[1680361396281,17.0,20.905,20.889,10.0]
[1680361396485,10.0,20.904,20.889,10.0]
[1680361396704,17.0,20.903,20.889,10.0]
[1680361397005,17.0,20.903,20.888,10.0]
[1680361399097,20.0,20.906,20.888,29.148]
[1680361399308,17.0,20.905,20.889,17.0]
[1680361399488,17.0,20.905,20.89,10.0]
[1680361399806,61.64090671,20.91,20.892,23.99857802]
[1680361400010,109.4685,20.913,20.893,17.0]
[1680361400313,109.4685,20.913,20.894,20.0]
[1680361400487,10.0,20.912,20.895,10.0]
[1680361401798,17.0,20.911,20.895,10.0]
[1680361402510,10.0,20.91,20.895,10.0]
[1680361402698,17.0,20.909,20.895,10.0]
[1680361402886,109.4685,20.913,20.896,36.141]
[1680361403511,10.0,20.912,20.897,10.0]
[1680361403813,54.31,20.91,20.894,20.0]
[1680361404013,54.31,20.91,20.893,20.0]
[1680361404305,10.0,20.908,20.894,10.0]
[1680361404514,17.0,20.907,20.894,10.0]
[1680361404713,20.0,20.906,20.892,10.0]
[1680361404892,17.0,20.905,20.892,10.0]
[1680361405819,20.0,20.906,20.892,10.0]
[1680361406012,20.0,20.907,20.892,10.0]
[1680361406319,17.0,20.906,20.892,10.0]
[1680361406615,17.0,20.906,20.895,19.143]
[1680361408210,17.0,20.906,20.892,10.0]
[1680361408907,10.0,20.905,20.892,10.0]
[1680361409119,17.0,20.904,20.892,10.0]
[1680361409693,20.0,20.907,20.894,19.143]
[1680361410101,20.0,20.907,20.895,10.0]
[1680361410403,10.0,20.906,20.894,19.143]
[1680361411407,10.0,20.904,20.891,9.21436965]
[1680361411601,53.93,20.9,20.891,9.21436965]
[1680361411807,17.0,20.899,20.891,9.21436965]
[1680361413914,53.93,20.9,20.891,9.21436965]
[1680361414310,10.0,20.898,20.891,9.21436965]
[1680361414515,17.0,20.899,20.891,9.21436965]
[1680361415406,10.0,20.898,20.891,9.21436965]
[1680361415719,37.0,20.897,20.885,10.0]
[1680361416101,10.0,20.896,20.885,10.0]
[1680361416305,17.0,20.895,20.885,10.0]
[1680361416507,17.0,20.895,20.884,10.0]
[1680361418316,17.0,20.896,20.884,10.0]
[1680361419205,17.0,20.896,20.885,19.152]
[1680361419406,17.0,20.896,20.886,10.0]
[1680361420424,20.0,20.897,20.886,10.0]
[1680361420622,20.0,20.899,20.886,10.0]
[1680361420810,17.0,20.898,20.886,10.0]
[1680361421013,20.0,20.897,20.886,10.0]
[1680361423707,7.18090671,20.902,20.886,10.0]
[1680361423913,10.0,20.912,20.886,10.0]
[1680361424111,16.5,20.899,20.886,10.0]
[1680361425207,10.0,20.898,20.886,10.0]
[1680361426031,16.5,20.899,20.886,10.0]
[1680361428311,10.0,20.898,20.885,19.152]
[1680361428513,17.0,20.897,20.885,19.152]
[1680361429219,20.0,20.896,20.885,19.152]
[1680361429424,17.0,20.895,20.885,19.152]
[1680361429934,17.0,20.895,20.886,10.0]
[1680361431127,20.0,20.896,20.886,10.0]
[1680361431428,162.9955,20.9,20.889,19.148]
[1680361432231,162.9955,20.9,20.89,10.0]
[1680361432419,109.0655,20.9,20.89,10.0]
[1680361432832,109.0655,20.9,20.89,9.5]
[1680361434641,17.18090671,20.909,20.893,19.144]
[1680361435017,17.18090671,20.909,20.894,10.0]
[1680361440628,68.51088168,20.91,20.894,10.0]
[1680361440823,10.0,20.908,20.894,10.0]
[1680361441019,20.0,20.907,20.894,10.0]
[1680361441229,20.0,20.907,20.896,19.141]
[1680361441535,20.0,20.907,20.897,10.0]
[1680361442325,19.217458,20.908,20.897,10.0]
[1680361442530,19.217458,20.908,20.9,19.138]
[1680361442734,19.217458,20.908,20.901,10.0]
[1680361444843,19.217458,20.908,20.901,10.0]
[1680361446241,19.217458,20.908,20.9,19.138]
[1680361450651,19.217458,20.908,20.896,19.142]
[1680361450853,37.0,20.907,20.891,19.146]
[1680361451143,54.53,20.9,20.891,19.146]
[1680361452336,40.9,20.9,20.891,19.146]
[1680361453440,20.0,20.907,20.891,19.146]
[1680361453772,20.0,20.908,20.892,17.0]
[1680361454049,20.0,20.908,20.896,19.141]
[1680361454432,10.0,20.907,20.896,19.141]
[1680361454631,20.0,20.906,20.896,19.141]
[1680361454847,20.0,20.906,20.897,10.0]
[1680361455436,20.0,20.908,20.897,10.0]
[1680361455949,40.9,20.91,20.897,10.0]
[1680361456438,40.9,20.91,20.898,17.0]
[1680361457047,10.0,20.915,20.899,10.0]
[1680361457646,10.0,20.915,20.899,29.138]
[1680361463434,10.0,20.915,20.9,17.0]
[1680361463650,10.0,20.915,20.901,10.0]
[1680361464444,19.146,20.916,20.903,19.135]
[1680361464752,19.146,20.916,20.904,37.0]
[1680361464953,19.146,20.916,20.907,19.131]
[1680361465136,19.146,20.916,20.908,17.0]
[1680361465740,10.0,20.915,20.907,19.131]
[1680361467159,19.146,20.916,20.907,19.131]
[1680361469149,19.146,20.916,20.908,10.0]
[1680361470866,19.146,20.916,20.911,57.385]
[1680361471761,19.146,20.916,20.913,10.0]
[1680361472349,19.146,20.916,20.911,57.385]
[1680361472544,19.146,20.916,20.911,19.128]
[1680361473557,19.146,20.916,20.912,10.0]
[1680361473752,19.146,20.916,20.913,17.0]
[1680361474163,19.146,20.916,20.914,10.0]
[1680361474359,19.146,20.916,20.915,19.125]
[1680361475867,19.146,20.916,20.915,36.125]
[1680361476869,116.2991,20.924,20.915,36.125]
[1680361477459,116.2991,20.924,20.916,10.0]
[1680361478768,116.2991,20.924,20.915,36.125]
[1680361478955,116.2991,20.924,20.915,19.125]
[1680361481268,10.0,20.923,20.915,19.125]
[1680361482658,10.0,20.927,20.915,19.125]
[1680361482858,10.0,20.925,20.915,19.125]
[1680361483277,10.0,20.925,20.91,19.128]
[1680361483776,17.0,20.924,20.91,19.128]
[1680361483967,10.0,20.923,20.91,19.128]
[1680361484669,10.0,20.927,20.912,10.0]
[1680361484870,20.0,20.926,20.915,19.124]
[1680361485480,20.0,20.926,20.916,10.0]
[1680361486460,106.47339324,20.93,20.916,10.0]
[1680361486461,20.0,20.928,20.916,10.0]
[1680361486683,30.0,20.929,20.916,10.0]
[1680361490882,20.0,20.929,20.916,10.0]
[1680361493383,10.0,20.928,20.916,10.0]
[1680361493684,10.0,20.926,20.915,19.124]
[1680361495890,17.0,20.925,20.912,19.20511651]
[1680361496073,10.0,20.924,20.912,9.20511651]
[1680361497687,7.5,20.924,20.912,9.20511651]
[1680361500490,10.0,20.922,20.912,9.20511651]
[1680361501883,7.5,20.922,20.912,9.20511651]
[1680361502694,40.81,20.92,20.912,9.20511651]
[1680361502996,17.0,20.919,20.912,9.20511651]
[1680361503494,10.0,20.918,20.912,9.20511651]
[1680361503692,10.0,20.916,20.912,9.20511651]
[1680361506705,27.0,20.919,20.912,9.20511651]
[1680361507090,17.0,20.919,20.912,9.20511651]
[1680361507292,81.71,20.92,20.912,9.20511651]
[1680361507501,40.9,20.92,20.912,9.20511651]
[1680361507795,114.8814,20.922,20.912,28.33211651]
[1680361508388,114.8814,20.922,20.913,10.0]
[1680361511181,114.8814,20.922,20.914,9.20423623]
[1680361513310,114.8814,20.922,20.917,10.0]
[1680361515286,106.25339324,20.93,20.917,10.0]
[1680361516482,20.0,20.929,20.917,10.0]
[1680361517007,10.0,20.928,20.917,10.0]
[1680361517193,20.0,20.927,20.917,10.0]
[1680361519107,79.07339324,20.93,20.917,10.0]
[1680361519108,20.0,20.928,20.917,10.0]